fUST/lending_fUST_20250212
["ID","MTS","AMOUNT","RATE_DAILY","PERIOD"]
[352807023,1739334433133,-799.64870777,0.00013421,2]
[352807024,1739334433154,-8823.17088132,0.0001352,2]
[352807055,1739334631902,-699.69261929,0.00013421,2]
[352807056,1739334631913,-90.79387618,0.0001352,2]
[352807057,1739334631923,-192.62943949,0.0001352,2]
[352807058,1739334631936,-127.62162012,0.0001352,2]
[352807059,1739334631946,-500.0,0.0001352,2]
[352807060,1739334631956,-500.0,0.0001352,2]
[352807061,1739334631968,-300.0,0.0001352,2]
[352807062,1739334631977,-591.83,0.0001352,2]
[352807063,1739334631988,-2443.2,0.0001352,2]
[352807064,1739334631998,-500.0,0.0001352,2]
[352807065,1739334632008,-500.0,0.0001352,2]
[352807066,1739334632017,-500.0,0.0001352,2]
[352807067,1739334632027,-330.34452544,0.00013521,2]
[352807068,1739334632037,-500.0,0.00013521,2]
[352807069,1739334632046,-505.76058213,0.00013521,2]
[352807070,1739334632056,-500.0,0.00013521,2]
[352807071,1739334632066,-500.0,0.00013521,2]
[352807073,1739334632076,-500.70006565,0.00013521,2]
[352807075,1739334632085,-500.8754972,0.00013521,2]
[352807076,1739334632095,-500.0,0.00013521,2]
[352807078,1739334632105,-500.0,0.00013521,2]
[352807079,1739334632114,-500.0,0.00013521,2]
[352807081,1739334632124,-500.0,0.00013521,2]
[352807082,1739334632134,-500.0,0.00013521,2]
[352807084,1739334632144,-500.0,0.00013521,2]
[352807086,1739334632154,-500.0,0.00013521,2]
[352807087,1739334632165,-500.0,0.00013521,2]
[352807089,1739334632174,-500.0,0.00013521,2]
[352807090,1739334632184,-500.0,0.00013521,2]
[352807092,1739334632193,-500.0,0.00013521,2]
[352807093,1739334632202,-3.30967239,0.00013521,2]
[352807095,1739334632218,-496.69032761,0.00013521,2]
[352807097,1739334632228,-500.0,0.00013521,2]
[352807099,1739334632237,-500.0,0.00013521,2]
[352807100,1739334632247,-500.0,0.00013521,2]
[352807102,1739334632258,-500.0,0.00013521,2]
[352807103,1739334632267,-500.0,0.00013521,2]
[352807104,1739334632278,-500.0,0.00013521,2]
[352807105,1739334632287,-500.0,0.00013521,2]
[352807106,1739334632297,-500.0,0.00013521,2]
[352807107,1739334632307,-500.0,0.00013521,2]
[352807108,1739334632318,-500.0,0.00013521,2]
[352807109,1739334632328,-500.0,0.00013521,2]
[352807110,1739334632338,-500.0,0.00013521,2]
[352807111,1739334632353,-500.0,0.00013521,2]
[352807112,1739334632363,-500.0,0.00013521,2]
[352807113,1739334632375,-157.62043539,0.00013521,2]
[352807114,1739334632389,-342.37956461,0.00013521,2]
[352807115,1739334632400,-635.43101365,0.00013521,2]
[352807116,1739334632411,-500.0,0.00013521,2]
[352807117,1739334632421,-500.0,0.00013521,2]
[352807118,1739334632431,-500.0,0.00013521,2]
[352807119,1739334632442,-500.0,0.00013521,2]
[352807120,1739334632452,-500.0,0.00013521,2]
[352807121,1739334632462,-500.0,0.00013521,2]
[352807122,1739334632477,-500.0,0.00013521,2]
[352807123,1739334632487,-500.0,0.00013521,2]
[352807124,1739334632496,-500.0,0.00013521,2]
[352807125,1739334632506,-500.0,0.00013521,2]
[352807126,1739334632515,-500.0,0.00013521,2]
[352807127,1739334632525,-500.0,0.00013521,2]
[352807128,1739334632534,-500.4,0.00013521,2]
[352807129,1739334632544,-413.05135032,0.00013521,2]
[352807130,1739334632554,-500.0,0.00013521,2]
[352807131,1739334632564,-500.0,0.00013521,2]
[352807132,1739334632574,-500.0,0.00013521,2]
[352807133,1739334632584,-500.0,0.00013521,2]
[352807134,1739334632594,-500.0,0.00013521,2]
[352807135,1739334632604,-500.0,0.00013521,2]
[352807136,1739334632614,-513.6557976,0.00013521,2]
[352807137,1739334632623,-500.0,0.00013521,2]
[352807138,1739334632634,-500.0,0.00013521,2]
[352807139,1739334632644,-503.14433054,0.00013521,2]
[352807140,1739334632655,-500.0,0.00013521,2]
[352807141,1739334632665,-500.0,0.00013521,2]
[352807142,1739334632788,-533.87,0.00013521,2]
[352807143,1739334632800,-6039.62,0.00013521,2]
[352807144,1739334632811,-748.99,0.00013521,2]
[352807145,1739334632820,-500.0,0.00013521,2]
[352807146,1739334632831,-526.61,0.00013521,2]
[352807147,1739334632841,-1066.66,0.00013521,2]
[352807148,1739334632851,-500.0,0.00013521,2]
[352807149,1739334632861,-500.0,0.00013521,2]
[352807150,1739334632872,-849.61685937,0.00013521,2]
[352807153,1739334637641,-1550.31314063,0.00013521,2]
[352807154,1739334637651,-500.0,0.00013521,2]
[352807155,1739334637660,-500.0,0.00013521,2]
[352807156,1739334637670,-307.27720512,0.00013521,2]
[352807157,1739334637681,-193.90279488,0.00013521,2]
[352807158,1739334637691,-500.0,0.00013521,2]
[352807159,1739334637701,-106.98639907,0.00013521,2]
[352807160,1739334637713,-393.01360093,0.00013521,2]
[352807161,1739334637726,-500.0,0.00013521,2]
[352807162,1739334637736,-500.0,0.00013521,2]
[352807163,1739334637747,-500.0,0.00013521,2]
[352807164,1739334637761,-500.0,0.00013521,2]
[352807166,1739334637771,-500.0,0.00013521,2]
[352807168,1739334637780,-500.0,0.00013521,2]
[352807170,1739334637789,-584.4091153,0.00013521,2]
[352807172,1739334637800,-500.0,0.00013521,2]
[352807173,1739334637810,-183.01,0.00013521,2]
[352807174,1739334637819,-500.0,0.00013521,2]
[352807175,1739334637829,-500.0,0.00013521,2]
[352807176,1739334637840,-500.0,0.00013521,2]
[352807177,1739334637850,-500.0,0.00013521,2]
[352807178,1739334637860,-539.16,0.00013521,2]
[352807179,1739334637871,-500.0,0.00013521,2]
[352807180,1739334637880,-500.0,0.00013521,2]
[352807181,1739334637890,-500.0,0.00013521,2]
[352807182,1739334637900,-500.0,0.00013521,2]
[352807183,1739334637909,-3609.7,0.00013521,2]
[352807184,1739334637919,-725.58,0.00013521,2]
[352807185,1739334637930,-821.02,0.00013521,2]
[352807186,1739334637939,-502.17732551,0.00013521,2]
[352807187,1739334637949,-500.0,0.00013521,2]
[352807188,1739334637959,-424.72401432,0.00013522,2]
[352807189,1739334637968,-516.95640833,0.00013522,2]
[352807190,1739334637982,-500.0,0.00013522,2]
[352807191,1739334637992,-500.0,0.00013522,2]
[352807192,1739334638001,-500.0,0.00013522,2]
[352807193,1739334638011,-500.0,0.00013522,2]
[352807194,1739334638020,-362.33072118,0.00013522,2]
[352807195,1739334638029,-506.02512467,0.00013522,2]
[352807196,1739334638039,-500.0,0.00013522,2]
[352807197,1739334638049,-500.0,0.00013522,2]
[352807198,1739334638059,-500.0,0.00013522,2]
[352807199,1739334638068,-500.0,0.00013522,2]
[352807200,1739334638078,-501.87414145,0.00013522,2]
[352807201,1739334638087,-500.0,0.00013522,2]
[352807202,1739334638097,-188.01083267,0.00013522,2]
[352807203,1739334638106,-500.0,0.00013522,2]
[352807204,1739334638116,-500.0,0.00013522,2]
[352807205,1739334638125,-500.0,0.00013522,2]
[352807206,1739334638135,-500.0,0.00013522,2]
[352807207,1739334638144,-500.0,0.00013522,2]
[352807208,1739334638153,-500.0,0.00013522,2]
[352807209,1739334638163,-500.0,0.00013522,2]
[352807210,1739334638172,-501.80847201,0.00013522,2]
[352807211,1739334638182,-229.57934299,0.00013522,2]
[352807212,1739334638191,-160.36570698,0.00013522,2]
[352807213,1739334638201,-188.27911963,0.00013522,2]
[352807214,1739334638211,-500.0,0.00013522,2]
[352807215,1739334638220,-500.0,0.00013522,2]
[352807216,1739334638231,-502.10651484,0.00013522,2]
[352807217,1739334638240,-500.0,0.00013522,2]
[352807218,1739334638250,-500.0,0.00013522,2]
[352807219,1739334638259,-502.3868348,0.00013522,2]
[352807220,1739334638269,-500.0,0.00013522,2]
[352807221,1739334638278,-500.0,0.00013522,2]
[352807222,1739334638288,-500.0,0.00013522,2]
[352807223,1739334638297,-500.0,0.00013522,2]
[352807224,1739334638307,-500.0,0.00013522,2]
[352807225,1739334638316,-500.0,0.00013522,2]
[352807226,1739334638325,-511.96502927,0.00013522,2]
[352807227,1739334638335,-500.0,0.00013522,2]
[352807228,1739334638344,-500.0,0.00013522,2]
[352807229,1739334638353,-501.2433741,0.00013522,2]
[352807230,1739334638362,-503.07666868,0.00013522,2]
[352807231,1739334638371,-500.0,0.00013522,2]
[352807232,1739334638381,-500.0,0.00013522,2]
[352807233,1739334638390,-500.0,0.00013522,2]
[352807234,1739334638399,-364.99908863,0.00013522,2]
[352807235,1739334638409,-289.54144508,0.00013522,2]
[352807236,1739334638419,-500.0,0.00013522,2]
[352807237,1739334638428,-500.0,0.00013522,2]
[352807238,1739334638437,-501.03585771,0.00013522,2]
[352807239,1739334638447,-500.0,0.00013522,2]
[352807240,1739334638457,-213.35144511,0.00013522,2]
[352807241,1739334638466,-506.11625891,0.00013522,2]
[352807242,1739334638477,-178.82496126,0.00013522,2]
[352807243,1739334638487,-506.74957362,0.00013522,2]
[352807244,1739334638497,-500.0,0.00013522,2]
[352807245,1739334638507,-500.0,0.00013522,2]
[352807246,1739334638516,-500.0,0.00013522,2]
[352807247,1739334638525,-500.0,0.00013522,2]
[352807248,1739334638535,-500.0,0.00013522,2]
[352807249,1739334638544,-500.0,0.00013522,2]
[352807250,1739334638553,-500.0,0.00013522,2]
[352807251,1739334638562,-500.0,0.00013522,2]
[352807252,1739334638572,-500.0,0.00013522,2]
[352807253,1739334638582,-500.0,0.00013522,2]
[352807254,1739334638591,-500.0,0.00013522,2]
[352807255,1739334638601,-500.0,0.00013522,2]
[352807256,1739334638611,-500.0,0.00013522,2]
[352807257,1739334638620,-500.0,0.00013522,2]
[352807258,1739334638629,-500.0,0.00013522,2]
[352807259,1739334638639,-500.0,0.00013522,2]
[352807260,1739334638648,-500.7483582,0.00013522,2]
[352807261,1739334638657,-500.0,0.00013522,2]
[352807262,1739334638667,-500.0,0.00013522,2]
[352807263,1739334638676,-500.0,0.00013522,2]
[352807264,1739334638686,-178.92000695,0.00013522,2]
[352807265,1739334638695,-500.0,0.00013522,2]
[352807266,1739334638705,-500.0,0.00013522,2]
[352807267,1739334638715,-301.39834313,0.00013522,2]
[352807268,1739334638727,-500.0,0.00013522,2]
[352807269,1739334638737,-500.0,0.00013522,2]
[352807270,1739334638748,-500.0,0.00013522,2]
[352807271,1739334638762,-500.0,0.00013522,2]
[352807272,1739334638771,-466.92318643,0.00013522,2]
[352807273,1739334638781,-501.7194448,0.00013522,2]
[352807274,1739334638791,-500.0,0.00013522,2]
[352807275,1739334638801,-500.0,0.00013522,2]
[352807276,1739334638810,-500.0,0.00013522,2]
[352807277,1739334638820,-500.77245704,0.00013522,2]
[352807278,1739334638831,-503.12573856,0.00013522,2]
[352807279,1739334638840,-508.50164257,0.00013522,2]
[352807280,1739334638850,-500.0,0.00013522,2]
[352807281,1739334638861,-500.0,0.00013522,2]
[352807282,1739334638871,-500.0,0.00013522,2]
[352807283,1739334638881,-500.0,0.00013522,2]
[352807284,1739334638892,-500.0,0.00013522,2]
[352807285,1739334638902,-500.0,0.00013522,2]
[352807286,1739334638913,-500.0,0.00013522,2]
[352807287,1739334638923,-500.0,0.00013522,2]
[352807288,1739334638932,-500.0,0.00013522,2]
[352807289,1739334638942,-500.0,0.00013522,2]
[352807290,1739334638953,-500.0,0.00013522,2]
[352807291,1739334638963,-500.0,0.00013522,2]
[352807292,1739334638973,-500.0,0.00013522,2]
[352807293,1739334638982,-500.0,0.00013522,2]
[352807294,1739334638992,-500.0,0.00013522,2]
[352807295,1739334639002,-500.44613187,0.00013522,2]
[352807296,1739334639011,-500.78588399,0.00013522,2]
[352807297,1739334639021,-500.0,0.00013522,2]
[352807298,1739334639031,-500.0,0.00013522,2]
[352807299,1739334639041,-341.21710812,0.00013522,2]
[352807300,1739334639051,-500.0,0.00013522,2]
[352807301,1739334639060,-500.0,0.00013522,2]
[352807302,1739334639069,-500.0,0.00013522,2]
[352807303,1739334639079,-500.56636163,0.00013522,2]
[352807304,1739334639089,-527.91598003,0.00013522,2]
[352807305,1739334639099,-500.0,0.00013522,2]
[352807306,1739334639108,-500.0,0.00013522,2]
[352807307,1739334639118,-500.0,0.00013522,2]
[352807308,1739334639127,-502.82549409,0.00013522,2]
[352807309,1739334639138,-500.0,0.00013522,2]
[352807310,1739334639148,-500.0,0.00013522,2]
[352807311,1739334639158,-630.69146619,0.00013522,2]
[352807312,1739334639167,-501.25383309,0.00013522,2]
[352807314,1739334639177,-501.98122186,0.00013522,2]
[352807316,1739334639187,-500.0,0.00013522,2]
[352807318,1739334639196,-500.0,0.00013522,2]
[352807320,1739334639205,-500.44192453,0.00013522,2]
[352807322,1739334639215,-500.0,0.00013522,2]
[352807324,1739334639226,-500.26193102,0.00013522,2]
[352807325,1739334639235,-505.01943868,0.00013522,2]
[352807327,1739334639244,-500.0,0.00013522,2]
[352807329,1739334639254,-500.0,0.00013522,2]
[352807331,1739334639263,-500.0,0.00013522,2]
[352807333,1739334639273,-204.42595018,0.00013522,2]
[352807335,1739334639282,-500.0,0.00013523,2]
[352807337,1739334639292,-500.0,0.00013523,2]
[352807339,1739334639302,-500.0,0.00013523,2]
[352807341,1739334639311,-500.0,0.00013523,2]
[352807343,1739334639321,-500.0,0.00013523,2]
[352807345,1739334639330,-500.0,0.00013523,2]
[352807347,1739334639339,-503.93599152,0.00013523,2]
[352807349,1739334639349,-500.0,0.00013523,2]
[352807362,1739334639472,-500.0,0.00013523,2]
[352807364,1739334639483,-500.0,0.00013523,2]
[352807366,1739334639492,-500.0,0.00013523,2]
[352807368,1739334639502,-500.0,0.00013523,2]
[352807370,1739334639512,-500.0,0.00013523,2]
[352807372,1739334639521,-500.0,0.00013523,2]
[352807374,1739334639530,-500.0,0.00013523,2]
[352807376,1739334639539,-614.97094932,0.00013523,2]
[352807378,1739334639549,-500.0,0.00013523,2]
[352807380,1739334639558,-500.0,0.00013523,2]
[352807382,1739334639568,-491.95098063,0.00013523,2]
[352807384,1739334639578,-515.15560528,0.00013524,2]
[352807386,1739334639587,-500.0,0.00013524,2]
[352807389,1739334639596,-500.92102813,0.00013524,2]
[352807391,1739334639605,-288.91950146,0.00013524,2]
[352807393,1739334639615,-314.50623218,0.00013524,2]
[352807395,1739334639624,-503.2900274,0.00013524,2]
[352807397,1739334639633,-501.29928733,0.00013524,2]
[352807399,1739334639643,-502.66210417,0.00013524,2]
[352807402,1739334639652,-502.83013255,0.00013524,2]
[352807404,1739334639663,-390.49616095,0.00013524,2]
[352807406,1739334639674,-331.43356889,0.00013524,2]
[352807408,1739334639683,-500.0,0.00013524,2]
[352807410,1739334639693,-415.19414322,0.00013524,2]
[352807412,1739334639703,-500.0,0.00013524,2]
[352807414,1739334639713,-500.0,0.00013524,2]
[352807416,1739334639725,-500.0,0.00013524,2]
[352807418,1739334639734,-500.0,0.00013524,2]
[352807420,1739334639745,-500.0,0.00013524,2]
[352807422,1739334639756,-500.0,0.00013524,2]
[352807424,1739334639767,-502.47034774,0.00013524,2]
[352807426,1739334639776,-436.10090425,0.00013524,2]
[352807428,1739334639787,-500.0,0.00013524,2]
[352807430,1739334639796,-500.0,0.00013524,2]
[352807432,1739334639805,-500.0,0.00013524,2]
[352807434,1739334639814,-500.0,0.00013524,2]
[352807436,1739334639823,-500.0,0.00013524,2]
[352807438,1739334639834,-500.0,0.00013657,2]
[352807440,1739334639845,-353.53289875,0.00013657,2]
[352807442,1739334639854,-591.83,0.00013657,2]
[352807444,1739334639864,-2443.2,0.00013657,2]
[352807446,1739334639873,-501.16602888,0.00013657,2]
[352807448,1739334639883,-627.97600661,0.00013657,2]
[352807450,1739334639892,-589.58660605,0.00013658,2]
[352807451,1739334639902,-500.0,0.00013658,2]
[352807454,1739334639911,-500.0,0.00013658,2]
[352807456,1739334639921,-500.0,0.00013658,2]
[352807458,1739334639932,-518.84342026,0.00013658,2]
[352807459,1739334639941,-500.0,0.00013658,2]
[352807461,1739334639951,-500.0,0.00013658,2]
[352807463,1739334639960,-500.0,0.00013658,2]
[352807465,1739334639970,-6039.62,0.00013658,2]
[352807467,1739334639980,-500.0,0.00013658,2]
[352807469,1739334639990,-1066.66,0.00013658,2]
[352807471,1739334639999,-500.0,0.00013658,2]
[352807473,1739334640009,-2399.93,0.00013658,2]
[352807475,1739334640019,-258.85,0.00013658,2]
[352807477,1739334640028,-500.0,0.00013658,2]
[352807478,1739334640038,-500.0,0.00013658,2]
[352807479,1739334640047,-500.0,0.00013658,2]
[352807480,1739334640056,-500.0,0.00013658,2]
[352807481,1739334640066,-500.0,0.00013658,2]
[352807482,1739334640075,-611.54,0.00013658,2]
[352807484,1739334640084,-500.0,0.00013658,2]
[352807486,1739334640094,-500.0,0.00013658,2]
[352807488,1739334640103,-500.0,0.00013658,2]
[352807490,1739334640112,-500.0,0.00013658,2]
[352807492,1739334640122,-500.0,0.00013658,2]
[352807494,1739334640132,-500.0,0.00013658,2]
[352807496,1739334640142,-539.16,0.00013658,2]
[352807498,1739334640151,-500.0,0.00013658,2]
[352807500,1739334640160,-3609.7,0.00013658,2]
[352807502,1739334640170,-725.58,0.00013658,2]
[352807504,1739334640179,-821.02,0.00013658,2]
[352807505,1739334640189,-502.92,0.00013658,2]
[352807507,1739334640198,-326.60443781,0.00013659,2]
[352807509,1739334640207,-500.0,0.00013659,2]
[352807510,1739334640216,-500.0,0.00013659,2]
[352807511,1739334640228,-500.0,0.00013659,2]
[352807512,1739334640237,-500.0,0.00013659,2]
[352807513,1739334640246,-502.45555578,0.00013659,2]
[352807514,1739334640256,-505.18893374,0.00013659,2]
[352807515,1739334640265,-410.35448357,0.00013659,2]
[352807516,1739334640275,-500.0,0.00013659,2]
[352807517,1739334640284,-500.0,0.00013659,2]
[352807518,1739334640293,-631.92330334,0.00013659,2]
[352807519,1739334640303,-500.0,0.00013659,2]
[352807520,1739334640312,-500.0,0.00013659,2]
[352807521,1739334640321,-500.0,0.00013659,2]
[352807522,1739334640330,-500.0,0.00013659,2]
[352807523,1739334640339,-501.34277435,0.00013659,2]
[352807524,1739334640349,-500.0,0.00013659,2]
[352807525,1739334640359,-500.0,0.00013659,2]
[352807526,1739334640368,-500.0,0.00013659,2]
[352807527,1739334640378,-500.0,0.00013659,2]
[352807528,1739334640387,-500.0,0.00013659,2]
[352807529,1739334640396,-500.0,0.00013659,2]
[352807530,1739334640405,-500.0,0.00013659,2]
[352807531,1739334640414,-503.9299007,0.00013659,2]
[352807532,1739334640424,-501.07051191,0.00013659,2]
[352807533,1739334640433,-500.0,0.00013659,2]
[352807534,1739334640443,-178.61064595,0.00013659,2]
[352807535,1739334640455,-500.0,0.00013659,2]
[352807536,1739334640464,-502.08802278,0.00013659,2]
[352807537,1739334640475,-204.95060938,0.0001366,2]
[352807538,1739334640485,-500.0,0.0001366,2]
[352807539,1739334640494,-500.0,0.0001366,2]
[352807540,1739334640503,-500.0,0.0001366,2]
[352807541,1739334640513,-548.0582008,0.00013661,2]
[352807542,1739334640522,-640.44589538,0.00013661,2]
[352807543,1739334640532,-504.1027579,0.00013661,2]
[352807544,1739334640541,-478.44730477,0.00013661,2]
[352807545,1739334640571,-0.97951872,0.00013661,2]
[352807546,1739334640581,-500.12369152,0.00013661,2]
[352807547,1739334640592,-500.83905546,0.00013661,2]
[352807548,1739334640601,-627.31425772,0.00013661,2]
[352807549,1739334640611,-502.65064389,0.00013661,2]
[352807550,1739334640620,-245.301444,0.00013661,2]
[352807551,1739334640630,-502.04810732,0.00013661,2]
[352807552,1739334640640,-401.11622215,0.00013661,2]
[352807553,1739334640649,-22700.22726933,0.00013687,2]
[352807554,1739334640661,-689.28299582,0.00013687,2]
[352807560,1739334642751,-717.78,0.0001352,2]
[352807561,1739334642764,-31.80507329,0.00013521,2]
[352807562,1739334642808,-468.19492671,0.00013521,2]
[352807563,1739334642818,-475.86208281,0.00013521,2]
[352807564,1739334642863,-24.13791719,0.00013521,2]
[352807565,1739334642873,-266.19421493,0.00013521,2]
[352807566,1739334642882,-461.96257009,0.00013521,2]
[352807567,1739334642892,-500.0,0.00013521,2]
[352807568,1739334642901,-500.0,0.00013521,2]
[352807569,1739334642911,-500.0,0.00013521,2]
[352807570,1739334642920,-500.0,0.00013521,2]
[352807571,1739334642930,-500.0,0.00013521,2]
[352807572,1739334642940,-500.0,0.00013521,2]
[352807573,1739334642949,-500.0,0.00013521,2]
[352807574,1739334642959,-336.85,0.00013521,2]
[352807575,1739334642968,-500.0,0.00013521,2]
[352807576,1739334642979,-500.0,0.00013521,2]
[352807577,1739334642989,-500.0,0.00013521,2]
[352807578,1739334642999,-500.0,0.00013521,2]
[352807579,1739334643008,-500.0,0.00013521,2]
[352807580,1739334643018,-152.2117178,0.00013521,2]
[352807589,1739334645816,-347.7882822,0.00013521,2]
[352807590,1739334645828,-500.0,0.00013521,2]
[352807591,1739334645839,-365.61843072,0.00013521,2]
[352807592,1739334645849,-500.0,0.00013521,2]
[352807593,1739334645859,-717.78,0.00013657,2]
[352807594,1739334645870,-14656.6920581,0.00013687,2]
[352807595,1739334645879,-500.0,0.00013698,14]
[352807596,1739334645894,-500.0,0.00013698,14]
[352807597,1739334645915,-500.0,0.00013698,2]
[352807598,1739334645927,-500.0,0.00013698,2]
[352807599,1739334645937,-1000.0,0.00013698,2]
[352807600,1739334645947,-1000.0,0.00013698,2]
[352807601,1739334645957,-339.547976,0.00013699,2]
[352807602,1739334645966,-294.356109,0.00013699,2]
[352807603,1739334645977,-500.0,0.00013699,2]
[352807604,1739334645986,-500.0,0.00013699,2]
[352807605,1739334645996,-500.0,0.00013699,2]
[352807606,1739334646006,-220.55042214,0.00013699,2]
[352807607,1739334646016,-500.0,0.00013699,2]
[352807608,1739334646025,-500.0,0.00013699,2]
[352807609,1739334646035,-500.0,0.00013699,2]
[352807610,1739334646045,-500.0,0.00013699,2]
[352807611,1739334646055,-500.0,0.00013699,2]
[352807612,1739334646064,-500.0,0.00013699,2]
[352807613,1739334646074,-272.82476238,0.00013787,2]
[352807614,1739334646083,-500.0,0.0001379,2]
[352807615,1739334646092,-160.46632227,0.00013792,2]
[352807616,1739334646102,-500.0,0.00013794,2]
[352807617,1739334646111,-591.83,0.00013794,2]
[352807618,1739334646121,-2443.2,0.00013794,2]
[352807619,1739334646133,-576.93998856,0.00013794,2]
[352807620,1739334646145,-140.84001144,0.00013794,2]
[352807621,1739334646159,-206.15998856,0.00013795,2]
[352807622,1739334646172,-327.25932103,0.00013795,2]
[352807623,1739334646181,-382.41736254,0.00013795,2]
[352807624,1739334646191,-184.56617343,0.00013795,2]
[352807625,1739334646214,-315.43382657,0.00013795,2]
[352807626,1739334646224,-6039.62,0.00013795,2]
[352807627,1739334646235,-500.0,0.00013795,2]
[352807628,1739334646244,-1066.66,0.00013795,2]
[352807629,1739334646255,-500.0,0.00013795,2]
[352807630,1739334646265,-2399.93,0.00013795,2]
[352807631,1739334646274,-327.74,0.00013795,2]
[352807632,1739334646283,-500.0,0.00013795,2]
[352807633,1739334646293,-500.0,0.00013795,2]
[352807634,1739334646303,-500.0,0.00013795,2]
[352807635,1739334646313,-500.0,0.00013795,2]
[352807636,1739334646322,-500.0,0.00013795,2]
[352807637,1739334646331,-240.04558802,0.00013795,2]
[352807638,1739334646341,-500.0,0.00013795,2]
[352807639,1739334646351,-500.0,0.00013795,2]
[352807640,1739334646360,-500.0,0.00013795,2]
[352807641,1739334646370,-539.16,0.00013795,2]
[352807642,1739334646379,-500.0,0.00013795,2]
[352807643,1739334646390,-3609.7,0.00013795,2]
[352807644,1739334646399,-725.58,0.00013795,2]
[352807645,1739334646409,-821.02,0.00013795,2]
[352807646,1739334646420,-500.0,0.00013796,2]
[352807647,1739334646430,-503.41983443,0.00013796,2]
[352807648,1739334646439,-1000.0,0.00013796,2]
[352807649,1739334646449,-534.87201618,0.00013796,2]
[352807650,1739334646459,-122.24194543,0.00013796,2]
[352807651,1739334646471,-377.75805457,0.00013796,2]
[352807652,1739334646482,-189.23252493,0.00013796,2]
[352807653,1739334646492,-500.0,0.00013796,2]
[352807654,1739334646502,-500.0,0.00013796,2]
[352807655,1739334646512,-503.26821696,0.00013797,2]
[352807656,1739334646522,-500.0,0.00013797,2]
[352807657,1739334646532,-500.0,0.00013797,2]
[352807658,1739334646541,-505.32547186,0.00013797,2]
[352807659,1739334646551,-500.0,0.00013798,14]
[352807660,1739334646562,-153.0,0.000138,2]
[352807661,1739334646572,-169.26,0.00013891,2]
[352807662,1739334646582,-431.544094,0.000139,2]
[352807663,1739334646591,-699.69261925,0.00013912,2]
[352807664,1739334646600,-500.0,0.00013931,2]
[352807665,1739334646609,-591.83,0.00013931,2]
[352807666,1739334646619,-721.40001052,0.00013931,2]
[352807669,1739335401993,400.0,0.00010685,2]
[352807672,1739335627135,-150.35998969,0.00011329,4]
[352807673,1739335627157,-500.0,0.0001308,2]
[352807674,1739335627180,-700.09132091,0.00013285,2]
[352807675,1739335653140,-3091.89231261,0.00013285,2]
[352807676,1739335653163,-524.76946449,0.00013418,2]
[352807677,1739335653185,-300.0,0.00013419,2]
[352807678,1739335653205,-500.0,0.0001342,2]
[352807679,1739335653226,-500.0,0.0001342,2]
[352807680,1739335653247,-500.0,0.0001342,2]
[352807681,1739335653267,-2051.0,0.0001342,2]
[352807682,1739335653287,-166.17017667,0.0001342,2]
[352807683,1739335653308,-585.51,0.00013421,2]
[352807684,1739335653329,-347.94279756,0.00013421,2]
[352807732,1739335832124,-170.0291971,0.00013419,2]
[352807734,1739335832134,-300.0,0.0001342,2]
[352807736,1739335832143,-152.05720244,0.00013421,2]
[352807738,1739335832155,-500.0,0.00013421,2]